[Event "1000GM Schev-B January 2024"]
[Site "Sunnyvale"]
[Date "2024.01.20"]
[Round "1.1"]
[White "Bhatta, Rohit"]
[Black "Hernandez Jimenez, Jeronimo"]
[Result "1-0"]
[ECO "E04"]
[WhiteElo "1867"]
[BlackElo "2187"]
[Annotator "RC"]
[PlyCount "43"]
[EventDate "2024.01.20"]
[EventType "schev"]
[EventCountry "USA"]
[SourceTitle "playchess.com"]
[Source "ChessBase"]
[SourceQuality "1"]
[TimeControl "5400+30"]

1. d4 {[%emt 0:00:24]} d5 {[%emt 0:00:53]} 2. c4 {[%emt 0:00:11]} e6 {[%emt 0:00:10]} 3. Nf3 {[%emt 0:00:12]} Nf6 {[%emt 0:00:13]} 4. g3 {[%emt 0:00:08]} dxc4 {[%emt 0:00:37]} 5. Bg2 {[%emt 0:00:07]} a6 {[%emt 0:00:39]} 6. O-O {[%emt 0:00:18]} Nc6 {[%emt 0:01:43]} 7. Nbd2 {[%emt 0:01:10]} b5 {[%emt 0:18:31]} 8. b3 {[%emt 0:02:13]} c3 {[%emt 0:06:04]} 9. Nb1 {[%emt 0:00:07]} Nd5 {[%emt 0:05:47]} 10. e4 {[%emt 0:06:10]} Nf6 {[%emt 0:00:01]} 11. Nxc3 {[%emt 0:01:20]} Bb4 {[%emt 0:00:29]} 12. Qd3 {[%emt 0:03:14]} Bb7 {[%emt 0:03:21]} 13. Bb2 {[%emt 0:08:38]} O-O {[%emt 0:01:05]} 14. Rfd1 {[%emt 0:03:41]} Be7 {[%emt 0:01:39]} 15. Rac1 {[%emt 0:05:30]} Qb8 {[%emt 0:02:39]} 16. Qe2 {[%emt 0:08:29]} Re8 {[%emt 0:05:25]} 17. h4 {[%emt 0:12:04]} Qa7 {[%emt 0:01:20]} 18. e5 {[%emt 0:02:49]} Nd7 {[%emt 0:02:08]} 19. d5 {[%emt 0:03:59]} exd5 {[%emt 0:04:58]} 20. Nxd5 {[%emt 0:00:16]} Rac8 {[%emt 0:12:05]} 21. e6 {[%emt 0:05:32]} Bd6 {[%emt 0:06:12]} 22. exf7+ {[%emt 0:01:59]} 1-0

[Event "1000GM Schev-B January 2024"]
[Site "Sunnyvale"]
[Date "2024.01.20"]
[Round "1.2"]
[White "Talwalkar, Vedant"]
[Black "Angeles Mercado, Anthony R"]
[Result "0-1"]
[ECO "B72"]
[WhiteElo "1890"]
[BlackElo "2057"]
[Annotator "RC"]
[PlyCount "88"]
[EventDate "2024.01.20"]
[EventType "schev"]
[EventCountry "USA"]
[SourceTitle "playchess.com"]
[Source "ChessBase"]
[SourceQuality "1"]
[TimeControl "5400+30"]

1. e4 {[%emt 0:00:03]} c5 {[%emt 0:14:08]} 2. Nf3 {[%emt 0:00:06]} Nc6 {[%emt 0:01:39]} 3. d4 {[%emt 0:00:08]} cxd4 {[%emt 0:00:08]} 4. Nxd4 {[%emt 0:00:07]} g6 {[%emt 0:00:35]} 5. Nc3 {[%emt 0:00:09]} Bg7 {[%emt 0:00:07]} 6. Be3 {[%emt 0:00:07]} Nf6 {[%emt 0:00:16]} 7. Bc4 {[%emt 0:00:12]} O-O {[%emt 0:00:24]} 8. Bb3 {[%emt 0:00:08]} d6 {[%emt 0:05:51]} 9. h3 {[%emt 0:00:33]} Na5 {[%emt 0:06:13]} 10. O-O {[%emt 0:00:20]} b6 {[%emt 0:03:29]} 11. Qd3 {[%emt 0:04:17]} Bb7 {[%emt 0:04:06]} 12. Rfe1 {[%emt 0:12:11]} Nxb3 {[%emt 0:05:19]} 13. axb3 {[%emt 0:00:08]} d5 {[%emt 0:00:43]} 14. e5 {[%emt 0:03:27]} Ne4 {[%emt 0:00:09]} 15. f4 {[%emt 0:01:50]} Qd7 {[%emt 0:13:16]} 16. Qb5 {[%emt 0:04:54]} Rfd8 {[%emt 0:04:47]} 17. Nxe4 {[%emt 0:02:53]} dxe4 {[%emt 0:00:26]} 18. c3 {[%emt 0:03:10]} f6 {[%emt 0:07:52]} 19. Qxd7 {[%emt 0:00:42]} Rxd7 {[%emt 0:00:04]} 20. e6 {[%emt 1:05:05]} Rd5 {[%emt 0:02:25]} 21. c4 {[%emt 0:00:00]} Rd6 {[%emt 0:00:07]} 22. Nb5 {[%emt 0:00:00]} Rd3 {[%emt 0:04:33]} 23. Nc7 {[%emt 0:00:00]} Rc8 {[%emt 0:25:23]} 24. Rxa7 {[%emt 0:00:00]} Rxc7 {[%emt 0:00:00]} 25. Bxb6 {[%emt 0:00:00]} f5 {[%emt 0:00:00]} 26. c5 {[%emt 0:00:00]} Bd4+ {[%emt 0:00:00]} 27. Kh1 {[%emt 0:00:00]} Bxc5 {[%emt 0:00:00]} 28. Bxc5 {[%emt 0:00:00]} Rxb3 {[%emt 0:00:00]} 29. Bd4 {[%emt 0:00:00]} Rc6 {[%emt 0:00:00]} 30. Re3 {[%emt 0:00:00]} Rb4 {[%emt 0:00:00]} 31. Bc3 {[%emt 0:00:00]} Rb5 {[%emt 0:00:00]} 32. Ra4 {[%emt 0:00:00]} Rxe6 {[%emt 0:00:00]} 33. Rb4 {[%emt 0:00:00]} Rxb4 {[%emt 0:00:00]} 34. Bxb4 {[%emt 0:00:00]} Kf7 {[%emt 0:00:00]} 35. Kg1 {[%emt 0:00:00]} g5 {[%emt 0:00:00]} 36. g3 {[%emt 0:00:00]} gxf4 {[%emt 0:00:00]} 37. gxf4 {[%emt 0:00:00]} Rg6+ {[%emt 0:00:00]} 38. Kf2 {[%emt 0:00:00]} e5 {[%emt 0:00:07]} 39. Rc3 {[%emt 0:00:00]} Bc6 {[%emt 0:00:16]} 40. fxe5 {[%emt 0:00:00]} f4 {[%emt 0:00:30]} 41. Bd6 {[%emt 0:00:00]} e3+ {[%emt 0:00:30]} 42. Ke2 {[%emt 0:00:00]} Rg2+ {[%emt 0:00:30]} 43. Kf1 {[%emt 0:00:00]} f3 {[%emt 0:00:30]} 44. Rxe3 {[%emt 0:00:00]} Bb5+ {[%emt 0:00:30]} 0-1

[Event "1000GM Schev-B January 2024"]
[Site "Sunnyvale"]
[Date "2024.01.20"]
[Round "1.3"]
[White "Jin, Austin"]
[Black "Gracia Alvarez, Gerardo Antonio"]
[Result "0-1"]
[ECO "C44"]
[WhiteElo "1836"]
[BlackElo "2224"]
[Annotator "RC"]
[PlyCount "52"]
[EventDate "2024.01.20"]
[EventType "schev"]
[EventCountry "USA"]
[SourceTitle "playchess.com"]
[Source "ChessBase"]
[SourceQuality "1"]
[TimeControl "5400+30"]

1. e4 {[%emt 0:01:37]} e5 {[%emt 0:00:03]} 2. Nf3 {[%emt 0:00:05]} Nc6 {[%emt 0:00:03]} 3. g3 {[%emt 0:00:34]} Nf6 {[%emt 0:01:41]} 4. d3 {[%emt 0:00:07]} d5 {[%emt 0:01:56]} 5. exd5 {[%emt 0:00:04]} Nxd5 {[%emt 0:00:06]} 6. Bg2 {[%emt 0:00:23]} Bd6 {[%emt 0:03:20]} 7. O-O {[%emt 0:00:58]} O-O {[%emt 0:00:05]} 8. Nbd2 {[%emt 0:01:39]} Re8 {[%emt 0:00:53]} 9. Nc4 {[%emt 0:01:48]} Bf8 {[%emt 0:00:52]} 10. Re1 {[%emt 0:05:13]} f6 {[%emt 0:00:36]} 11. Ne3 {[%emt 0:08:40]} Nb6 {[%emt 0:06:17]} 12. Nh4 {[%emt 0:08:36]} Be6 {[%emt 0:01:45]} 13. Be4 {[%emt 0:05:45]} Qd7 {[%emt 0:10:25]} 14. c3 {[%emt 0:19:34]} g6 {[%emt 0:11:59]} 15. Nf3 {[%emt 0:09:53]} Bg7 {[%emt 0:02:40]} 16. d4 {[%emt 0:03:33]} exd4 {[%emt 0:01:12]} 17. Bxc6 {[%emt 0:01:49]} bxc6 {[%emt 0:00:06]} 18. Nxd4 {[%emt 0:00:59]} Bh3 {[%emt 0:03:47]} 19. Qf3 {[%emt 0:08:32]} Nd5 {[%emt 0:12:41]} 20. Bd2 {[%emt 0:01:30]} Rad8 {[%emt 0:01:10]} 21. Nxd5 {[%emt 0:02:35]} cxd5 {[%emt 0:00:10]} 22. Bf4 {[%emt 0:06:52]} c5 {[%emt 0:09:03]} 23. Nb3 {[%emt 0:00:47]} Qf5 {[%emt 0:00:19]} 24. Rxe8+ {[%emt 0:03:21]} Rxe8 {[%emt 0:00:03]} 25. Nxc5 {[%emt 0:01:17]} g5 {[%emt 0:00:07]} 26. Qh5 {[%emt 0:00:06]} Rc8 {[%emt 0:01:55]} 0-1

[Event "1000GM Schev-B January 2024"]
[Site "Sunnyvale"]
[Date "2024.01.20"]
[Round "1.4"]
[White "Contreras, Henry"]
[Black "Stevens, Adam B"]
[Result "1-0"]
[ECO "D02"]
[WhiteElo "2107"]
[BlackElo "1878"]
[Annotator "RC"]
[PlyCount "95"]
[EventDate "2024.01.20"]
[EventType "schev"]
[EventCountry "USA"]
[SourceTitle "playchess.com"]
[Source "ChessBase"]
[SourceQuality "1"]
[TimeControl "5400+30"]

1. d4 {[%emt 0:05:26]} d5 {[%emt 0:00:07]} 2. Bf4 {[%emt 0:00:21]} Nf6 {[%emt 0:00:22]} 3. e3 {[%emt 0:00:16]} c5 {[%emt 0:00:07]} 4. c3 {[%emt 0:04:58]} Nc6 {[%emt 0:00:46]} 5. Nf3 {[%emt 0:01:44]} Qb6 {[%emt 0:00:43]} 6. Na3 {[%emt 0:01:19]} a6 {[%emt 0:03:05]} 7. Qb3 {[%emt 0:00:39]} Qa7 {[%emt 0:08:15]} 8. Be2 {[%emt 0:10:41]} c4 {[%emt 0:02:33]} 9. Qc2 {[%emt 0:04:39]} g6 {[%emt 0:02:28]} 10. h3 {[%emt 0:00:19]} Bf5 {[%emt 0:00:26]} 11. Qc1 {[%emt 0:00:01]} b5 {[%emt 0:02:00]} 12. g4 {[%emt 0:00:38]} Be4 {[%emt 0:02:50]} 13. Nb1 {[%emt 0:00:25]} h5 {[%emt 0:00:53]} 14. Rg1 {[%emt 0:00:42]} hxg4 {[%emt 0:08:25]} 15. hxg4 {[%emt 0:00:03]} Qd7 {[%emt 0:03:46]} 16. Ne5 {[%emt 0:04:57]} Nxe5 {[%emt 0:04:45]} 17. dxe5 {[%emt 0:01:13]} Ng8 {[%emt 0:01:37]} 18. Nd2 {[%emt 0:00:17]} Bg7 {[%emt 0:05:07]} 19. Nxe4 {[%emt 0:01:36]} dxe4 {[%emt 0:00:05]} 20. Qc2 {[%emt 0:00:08]} Qb7 {[%emt 0:05:27]} 21. O-O-O {[%emt 0:01:33]} e6 {[%emt 0:00:55]} 22. Rd4 {[%emt 0:00:27]} Ne7 {[%emt 0:01:47]} 23. Qxe4 {[%emt 0:00:38]} Nd5 {[%emt 0:04:15]} 24. Bg5 {[%emt 0:02:15]} Rh2 {[%emt 0:04:06]} 25. Rf1 {[%emt 0:04:46]} Rb8 {[%emt 0:02:06]} 26. Rd2 {[%emt 0:17:08]} Qb6 {[%emt 0:10:52]} 27. Qd4 {[%emt 0:03:52]} Qc7 {[%emt 0:06:38]} 28. f4 {[%emt 0:01:58]} b4 {[%emt 0:02:39]} 29. Qxc4 {[%emt 0:06:30]} bxc3 {[%emt 0:03:49]} 30. bxc3 {[%emt 0:02:41]} Qb6 {[%emt 0:07:34]} 31. Qb3 {[%emt 0:01:34]} Rh3 {[%emt 0:00:41]} 32. Qxb6 {[%emt 0:02:24]} Rxb6 {[%emt 0:01:47]} 33. c4 {[%emt 0:02:14]} Ne7 {[%emt 0:02:11]} 34. Bf3 {[%emt 0:02:17]} Rb8 {[%emt 0:01:45]} 35. Kc2 {[%emt 0:00:40]} Rc8 {[%emt 0:01:16]} 36. Kb3 {[%emt 0:00:16]} Rb8+ {[%emt 0:00:29]} 37. Ka4 {[%emt 0:00:37]} Bf8 {[%emt 0:01:20]} 38. Rff2 {[%emt 0:01:24]} f6 {[%emt 0:00:50]} 39. exf6 {[%emt 0:00:21]} Nc8 {[%emt 0:00:06]} 40. Rd4 {[%emt 0:08:27]} Bc5 {[%emt 0:01:02]} 41. Bc6+ {[%emt 0:00:23]} Kf7 {[%emt 0:00:16]} 42. Rd7+ {[%emt 0:00:04]} Kf8 {[%emt 0:00:43]} 43. Rd8+ {[%emt 0:00:06]} Kf7 {[%emt 0:00:05]} 44. Be8+ {[%emt 0:00:15]} Kg8 {[%emt 0:00:24]} 45. Bxg6+ {[%emt 0:00:08]} Bf8 {[%emt 0:00:01]} 46. c5 {[%emt 0:00:28]} Nb6+ {[%emt 0:00:02]} 47. cxb6 {[%emt 0:00:01]} Rxd8 {[%emt 0:00:01]} 48. f7+ {[%emt 0:00:01]} 1-0

[Event "1000GM Schev-B January 2024"]
[Site "Sunnyvale"]
[Date "2024.01.20"]
[Round "1.5"]
[White "Rivera, Ingris"]
[Black "Ganesan, Vikrant"]
[Result "1-0"]
[ECO "E00"]
[WhiteElo "2145"]
[BlackElo "1870"]
[Annotator "NA RC"]
[PlyCount "39"]
[EventDate "2024.01.20"]
[EventType "schev"]
[EventCountry "USA"]
[SourceTitle "playchess.com"]
[Source "ChessBase"]
[SourceQuality "1"]
[TimeControl "5400+30"]

1. d4 {[%emt 0:04:42]} Nf6 {[%emt 0:00:15]} 2. c4 {[%emt 0:00:09]} e6 {[%emt 0:00:15]} 3. a3 {[%emt 0:00:23]} d5 {[%emt 0:00:40]} 4. Nc3 {[%emt 0:00:23]} b6 {[%emt 0:01:31]} 5. cxd5 {[%emt 0:02:11]} exd5 {[%emt 0:01:06]} 6. Bg5 {[%emt 0:00:20]} Bb7 {[%emt 0:01:54]} 7. e3 {[%emt 0:00:41]} a6 {[%emt 0:01:15]} 8. Bd3 {[%emt 0:01:49]} Bd6 {[%emt 0:00:21]} 9. Nf3 {[%emt 0:08:28]} O-O {[%emt 0:01:54]} 10. Ne5 {[%emt 0:07:26]} h6 {[%emt 0:02:34]} 11. Bh4 {[%emt 0:02:52]} g5 {[%emt 0:09:24]} 12. Bg3 {[%emt 0:04:29]} Ne4 {[%emt 0:08:21]} 13. Qh5 {[%emt 0:30:17]} Qf6 {[%emt 0:03:33]} 14. Ng4 {[%emt 0:05:20]} Qe6 {[%emt 0:03:01]} 15. Bxe4 {[%emt 0:05:35]} dxe4 {[%emt 0:00:29]} 16. Bxd6 {[%emt 0:01:47]} cxd6 {[%emt 0:00:52]} 17. Nxh6+ {[%emt 0:00:09]} Kg7 {[%emt 0:01:36]} 18. Qxg5+ {[%emt 0:00:35]} Kh7 {[%emt 0:00:33]} 19. Nf5 {[%emt 0:00:50]} Qg6 {[%emt 0:07:00]} 20. Qh4+ {[%emt 0:00:09]} 1-0

[Event "1000GM Schev-B January 2024"]
[Site "Sunnyvale"]
[Date "2024.01.21"]
[Round "2.1"]
[White "Angeles Mercado, Anthony R"]
[Black "Bhatta, Rohit"]
[Result "1-0"]
[ECO "C54"]
[WhiteElo "2057"]
[BlackElo "1867"]
[Annotator "NA RC"]
[PlyCount "59"]
[EventDate "2024.01.20"]
[EventType "schev"]
[EventCountry "USA"]
[SourceTitle "playchess.com"]
[Source "ChessBase"]
[SourceQuality "1"]
[TimeControl "5400+30"]

1. e4 {[%emt 0:00:30]} e5 {[%emt 0:02:10]} 2. Nf3 {[%emt 0:00:39]} Nc6 {[%emt 0:00:08]} 3. Bc4 {[%emt 0:00:27]} Bc5 {[%emt 0:00:22]} 4. d3 {[%emt 0:00:44]} Nf6 {[%emt 0:00:21]} 5. O-O {[%emt 0:00:45]} d6 {[%emt 0:00:39]} 6. c3 {[%emt 0:00:20]} a6 {[%emt 0:01:11]} 7. Bb3 {[%emt 0:06:23]} Ba7 {[%emt 0:00:23]} 8. Re1 {[%emt 0:01:13]} O-O {[%emt 0:02:10]} 9. h3 {[%emt 0:00:41]} h6 {[%emt 0:01:04]} 10. Nbd2 {[%emt 0:02:12]} Re8 {[%emt 0:02:04]} 11. Nf1 {[%emt 0:01:08]} Be6 {[%emt 0:00:22]} 12. Ba4 {[%emt 0:02:46]} b5 {[%emt 0:05:31]} 13. Bc2 {[%emt 0:00:07]} Ne7 {[%emt 0:03:23]} 14. Ng3 {[%emt 0:14:50]} Ng6 {[%emt 0:02:40]} 15. d4 {[%emt 0:01:18]} exd4 {[%emt 0:06:33]} 16. cxd4 {[%emt 0:12:39]} c5 {[%emt 0:00:59]} 17. b3 {[%emt 0:02:05]} Bc8 {[%emt 0:17:00]} (17... cxd4 $11 {remains equal.} 18. Nxd4 Bxd4 19. Qxd4 Rc8) 18. Bb2 {[%emt 0:04:06]} ({White should play} 18. e5 dxe5 19. Nxe5) 18... Bb7 $16 {[%emt 0:02:21]} ({Better is} 18... Bb6) 19. d5 {[%emt 0:07:31]} Bc8 {[%emt 0:10:00]} 20. e5 {[%emt 0:17:45]} Nxe5 {[%emt 0:06:36]} 21. Nxe5 {[%emt 0:02:03]} dxe5 {[%emt 0:01:58]} 22. Rxe5 {[%emt 0:00:28]} Bb7 {[%emt 0:10:44]} 23. Rxe8+ {[%emt 0:02:16]} Nxe8 {[%emt 0:00:06]} 24. Nf5 {[%emt 0:00:39]} Qg5 {[%emt 0:01:50]} 25. h4 {[%emt 0:01:16]} Qf4 {[%emt 0:02:43]} 26. g3 {[%emt 0:00:24]} Qc7 {[%emt 0:00:27]} 27. d6 {[%emt 0:01:37]} Qd8 {[%emt 0:01:07]} 28. Qg4 {[%emt 0:04:00]} Bc8 {[%emt 0:00:36]} 29. Bxg7 {[%emt 0:01:50]} Bxf5 {[%emt 0:00:26]} 30. Qxf5 {[%emt 0:00:06]} 1-0

[Event "1000GM Schev-B January 2024"]
[Site "Sunnyvale"]
[Date "2024.01.21"]
[Round "2.2"]
[White "Gracia Alvarez, Gerardo Antonio"]
[Black "Talwalkar, Vedant"]
[Result "1-0"]
[ECO "C49"]
[WhiteElo "2224"]
[BlackElo "1890"]
[Annotator "RC"]
[PlyCount "47"]
[EventDate "2024.01.20"]
[EventType "schev"]
[EventCountry "USA"]
[SourceTitle "playchess.com"]
[Source "ChessBase"]
[SourceQuality "1"]
[TimeControl "5400+30"]

1. e4 {[%emt 0:00:02]} e5 {[%emt 0:01:43]} 2. Nf3 {[%emt 0:00:05]} Nc6 {[%emt 0:00:05]} 3. Nc3 {[%emt 0:00:12]} Nf6 {[%emt 0:00:11]} 4. Bb5 {[%emt 0:00:06]} Bb4 {[%emt 0:00:15]} 5. O-O {[%emt 0:00:39]} O-O {[%emt 0:04:36]} 6. Bxc6 {[%emt 0:00:19]} bxc6 {[%emt 0:00:33]} 7. Nxe5 {[%emt 0:01:06]} Bxc3 {[%emt 0:01:57]} 8. dxc3 {[%emt 0:04:32]} Nxe4 {[%emt 0:00:16]} 9. Re1 {[%emt 0:14:36]} Nc5 {[%emt 0:13:34]} 10. b3 {[%emt 0:10:50]} Re8 {[%emt 0:05:27]} 11. Ba3 {[%emt 0:00:45]} Ne6 {[%emt 0:00:11]} 12. Re3 {[%emt 0:14:41]} f6 {[%emt 0:02:04]} 13. Nxc6 {[%emt 0:02:39]} dxc6 {[%emt 0:04:10]} 14. Rd3 {[%emt 0:00:03]} Bd7 {[%emt 0:01:54]} 15. Rxd7 {[%emt 0:00:06]} Qc8 {[%emt 0:00:33]} 16. Qd3 {[%emt 0:06:56]} Kh8 {[%emt 0:05:02]} 17. g3 {[%emt 0:02:24]} Ng5 {[%emt 0:03:03]} 18. Rd1 {[%emt 0:02:35]} Ne4 {[%emt 0:07:35]} 19. Qc4 {[%emt 0:04:56]} Qb7 {[%emt 0:06:15]} 20. Qf7 {[%emt 0:22:06]} Rg8 {[%emt 0:00:09]} 21. Rd8 {[%emt 0:00:44]} Raxd8 {[%emt 0:02:59]} 22. Rxd8 {[%emt 0:00:03]} Rxd8 {[%emt 0:00:21]} 23. Bf8 {[%emt 0:00:03]} Rd1+ {[%emt 0:00:33]} 24. Kg2 {[%emt 0:00:04]} 1-0

[Event "1000GM Schev-B January 2024"]
[Site "Sunnyvale"]
[Date "2024.01.21"]
[Round "2.3"]
[White "Contreras, Henry"]
[Black "Jin, Austin"]
[Result "1/2-1/2"]
[ECO "A03"]
[WhiteElo "2107"]
[BlackElo "1836"]
[Annotator "RC"]
[PlyCount "77"]
[EventDate "2024.01.20"]
[EventType "schev"]
[EventCountry "USA"]
[SourceTitle "playchess.com"]
[Source "ChessBase"]
[SourceQuality "1"]
[TimeControl "5400+30"]

1. g3 {[%emt 0:18:11]} d5 {[%emt 0:00:13]} 2. Bg2 {[%emt 0:00:11]} Nf6 {[%emt 0:00:12]} 3. f4 {[%emt 0:00:19]} e6 {[%emt 0:00:38]} 4. Nf3 {[%emt 0:00:11]} Be7 {[%emt 0:00:20]} 5. e3 {[%emt 0:01:02]} c5 {[%emt 0:00:31]} 6. Qe2 {[%emt 0:00:08]} Nc6 {[%emt 0:00:14]} 7. d3 {[%emt 0:00:02]} O-O {[%emt 0:00:52]} 8. e4 {[%emt 0:00:34]} dxe4 {[%emt 0:07:35]} 9. dxe4 {[%emt 0:00:02]} Qc7 {[%emt 0:01:36]} 10. e5 {[%emt 0:00:08]} Nd5 {[%emt 0:00:55]} 11. c4 {[%emt 0:00:10]} Nb6 {[%emt 0:01:52]} 12. h4 {[%emt 0:03:25]} Nd4 {[%emt 0:04:14]} 13. Nxd4 {[%emt 0:00:31]} cxd4 {[%emt 0:00:02]} 14. b3 {[%emt 0:00:38]} f6 {[%emt 0:01:49]} 15. exf6 {[%emt 0:06:30]} Bxf6 {[%emt 0:00:39]} 16. Qd3 {[%emt 0:00:29]} Nd7 {[%emt 0:05:13]} 17. Ba3 {[%emt 0:02:06]} Nc5 {[%emt 0:02:17]} 18. Bxc5 {[%emt 0:02:12]} Qxc5 {[%emt 0:00:01]} 19. Nd2 {[%emt 0:00:01]} e5 {[%emt 0:10:44]} 20. Bd5+ {[%emt 0:01:32]} Kh8 {[%emt 0:00:26]} 21. f5 {[%emt 0:00:03]} Bd8 {[%emt 0:02:57]} 22. g4 {[%emt 0:00:18]} Rb8 {[%emt 0:06:13]} 23. Ne4 {[%emt 0:03:51]} Qb4+ {[%emt 0:02:18]} 24. Ke2 {[%emt 0:02:55]} g6 {[%emt 0:07:27]} 25. Be6 {[%emt 0:01:07]} Bxe6 {[%emt 0:01:43]} 26. fxe6 {[%emt 0:00:04]} Qb6 {[%emt 0:00:52]} 27. Raf1 {[%emt 0:00:48]} Be7 {[%emt 0:02:05]} 28. Rxf8+ {[%emt 0:07:43]} Rxf8 {[%emt 0:00:26]} 29. Rf1 {[%emt 0:00:00]} Rxf1 {[%emt 0:01:29]} 30. Kxf1 {[%emt 0:00:01]} Qxe6 {[%emt 0:00:42]} 31. Qf3 {[%emt 0:00:02]} Kg7 {[%emt 0:01:36]} 32. g5 {[%emt 0:00:11]} Qf5 {[%emt 0:00:44]} 33. Ke2 {[%emt 0:00:02]} Qxf3+ {[%emt 0:09:06]} 34. Kxf3 {[%emt 0:02:02]} b6 35. Nf2 Kf7 36. Nd3 Ke6 37. Ke4 h6 38. gxh6 Bxh4 39. Nxe5 1/2-1/2

[Event "1000GM Schev-B January 2024"]
[Site "Sunnyvale"]
[Date "2024.01.21"]
[Round "2.4"]
[White "Stevens, Adam B"]
[Black "Rivera, Ingris"]
[Result "1/2-1/2"]
[ECO "E92"]
[WhiteElo "1878"]
[BlackElo "2145"]
[Annotator "RC"]
[PlyCount "57"]
[EventDate "2024.01.20"]
[EventType "schev"]
[EventCountry "USA"]
[SourceTitle "playchess.com"]
[Source "ChessBase"]
[SourceQuality "1"]
[TimeControl "5400+30"]

1. d4 {[%emt 0:00:04]} Nf6 {[%emt 0:05:38]} 2. c4 {[%emt 0:00:08]} g6 {[%emt 0:00:18]} 3. Nc3 {[%emt 0:00:07]} Bg7 {[%emt 0:00:12]} 4. e4 {[%emt 0:00:06]} d6 {[%emt 0:00:12]} 5. Nf3 {[%emt 0:00:09]} O-O {[%emt 0:00:16]} 6. Be2 {[%emt 0:00:04]} e5 {[%emt 0:01:08]} 7. Be3 {[%emt 0:01:15]} exd4 {[%emt 0:04:59]} 8. Nxd4 {[%emt 0:00:08]} Re8 {[%emt 0:00:16]} 9. f3 {[%emt 0:00:03]} c6 {[%emt 0:03:51]} 10. Bf2 {[%emt 0:00:02]} Nbd7 {[%emt 0:02:23]} 11. O-O {[%emt 0:04:31]} Nc5 {[%emt 0:03:53]} 12. Qd2 {[%emt 0:10:49]} Qe7 {[%emt 0:03:20]} 13. Rfe1 {[%emt 0:02:01]} Ne6 {[%emt 0:02:34]} 14. Rad1 {[%emt 0:00:42]} Rd8 {[%emt 0:01:20]} 15. Bf1 {[%emt 0:05:59]} Nh5 {[%emt 0:01:41]} 16. g3 {[%emt 0:01:12]} Ng5 {[%emt 0:06:16]} 17. Bg2 {[%emt 0:00:46]} Nh3+ {[%emt 0:00:58]} 18. Bxh3 {[%emt 0:01:29]} Bxh3 {[%emt 0:00:06]} 19. g4 {[%emt 0:01:58]} Nf6 {[%emt 0:02:15]} 20. Qg5 {[%emt 0:12:28]} Nd5 {[%emt 0:16:57]} 21. Qxe7 {[%emt 0:01:13]} Nxe7 {[%emt 0:00:06]} 22. Bh4 {[%emt 0:01:22]} Re8 {[%emt 0:02:15]} 23. Nde2 {[%emt 0:01:27]} Be5 {[%emt 0:01:44]} 24. Bg3 {[%emt 0:00:16]} f5 {[%emt 0:05:45]} 25. Bxe5 {[%emt 0:04:11]} dxe5 {[%emt 0:00:21]} 26. gxf5 {[%emt 0:00:56]} gxf5 {[%emt 0:00:24]} 27. Kf2 {[%emt 0:00:10]} f4 28. Nc1 {[%emt 0:02:04]} Ng6 {[%emt 0:20:13]} 29. Rd6 {[%emt 0:03:12]} 1/2-1/2

[Event "1000GM Schev-B January 2024"]
[Site "Sunnyvale"]
[Date "2024.01.21"]
[Round "2.5"]
[White "Ganesan, Vikrant"]
[Black "Hernandez Jimenez, Jeronimo"]
[Result "0-1"]
[ECO "A28"]
[WhiteElo "1870"]
[BlackElo "2187"]
[Annotator "RC"]
[PlyCount "54"]
[EventDate "2024.01.20"]
[EventType "schev"]
[EventCountry "USA"]
[SourceTitle "playchess.com"]
[Source "ChessBase"]
[SourceQuality "1"]
[TimeControl "5400+30"]

1. c4 {[%emt 0:10:16]} e5 {[%emt 0:06:13]} 2. Nc3 {[%emt 0:00:07]} Nf6 {[%emt 0:00:09]} 3. Nf3 {[%emt 0:00:05]} Nc6 {[%emt 0:00:16]} 4. e4 {[%emt 0:00:05]} Bc5 {[%emt 0:00:07]} 5. Nxe5 {[%emt 0:00:05]} Nxe5 {[%emt 0:00:04]} 6. d4 {[%emt 0:00:05]} Bb4 {[%emt 0:00:04]} 7. dxe5 {[%emt 0:00:05]} Nxe4 {[%emt 0:00:05]} 8. Qf3 {[%emt 0:00:11]} Nxc3 {[%emt 0:00:26]} 9. bxc3 {[%emt 0:00:07]} Ba5 {[%emt 0:00:01]} 10. Ba3 {[%emt 0:00:12]} d6 {[%emt 0:00:01]} 11. Rd1 {[%emt 0:01:08]} O-O {[%emt 0:01:04]} 12. Be2 {[%emt 0:00:45]} Bd7 {[%emt 0:12:05]} 13. exd6 {[%emt 0:15:11]} Bc6 {[%emt 0:01:40]} 14. Qd3 {[%emt 0:10:53]} Qg5 {[%emt 0:04:45]} 15. Rg1 {[%emt 0:19:47]} cxd6 {[%emt 0:04:06]} 16. g4 {[%emt 0:03:01]} Rfe8 {[%emt 0:01:30]} 17. Rg3 {[%emt 0:01:37]} d5 {[%emt 0:08:32]} 18. cxd5 {[%emt 0:09:30]} Rad8 {[%emt 0:00:25]} 19. Rh3 {[%emt 0:06:46]} g6 {[%emt 0:00:56]} 20. Bc1 {[%emt 0:08:25]} Qxd5 {[%emt 0:03:39]} 21. Qxd5 {[%emt 0:01:49]} Rxd5 {[%emt 0:00:38]} 22. Rxd5 {[%emt 0:05:06]} Bxd5 {[%emt 0:00:01]} 23. Kf1 {[%emt 0:01:21]} Bxa2 {[%emt 0:01:05]} 24. Be3 {[%emt 0:01:04]} Bxc3 {[%emt 0:02:42]} 25. Bxa7 {[%emt 0:00:03]} Bf6 {[%emt 0:00:34]} 26. Ra3 {[%emt 0:01:08]} Bd5 {[%emt 0:00:20]} 27. Bf3 {[%emt 0:00:08]} Bb2 {[%emt 0:00:23]} 0-1

[Event "1000GM Schev-B January 2024"]
[Site "Sunnyvale"]
[Date "2024.01.21"]
[Round "3.1"]
[White "Bhatta, Rohit"]
[Black "Gracia Alvarez, Gerardo Antonio"]
[Result "1/2-1/2"]
[ECO "A62"]
[WhiteElo "1867"]
[BlackElo "2224"]
[Annotator "RC"]
[PlyCount "39"]
[EventDate "2024.01.20"]
[EventType "schev"]
[EventCountry "USA"]
[SourceTitle "playchess.com"]
[Source "ChessBase"]
[SourceQuality "1"]
[TimeControl "5400+30"]

1. d4 {[%emt 0:05:26]} Nf6 {[%emt 0:00:06]} 2. c4 {[%emt 0:00:09]} c5 {[%emt 0:00:05]} 3. d5 {[%emt 0:00:48]} e6 {[%emt 0:00:06]} 4. Nc3 {[%emt 0:00:28]} exd5 {[%emt 0:00:05]} 5. cxd5 {[%emt 0:00:06]} d6 {[%emt 0:00:06]} 6. g3 {[%emt 0:00:42]} g6 {[%emt 0:00:08]} 7. Bg2 {[%emt 0:00:11]} Bg7 {[%emt 0:00:06]} 8. Nf3 {[%emt 0:00:07]} O-O {[%emt 0:00:07]} 9. O-O {[%emt 0:00:05]} Re8 {[%emt 0:00:07]} 10. Bf4 {[%emt 0:00:42]} h6 {[%emt 0:00:06]} 11. Qc1 {[%emt 0:04:26]} g5 {[%emt 0:00:04]} 12. Bd2 {[%emt 0:01:07]} Bf5 {[%emt 0:00:46]} 13. h4 {[%emt 0:02:40]} g4 {[%emt 0:00:06]} 14. Ne1 {[%emt 0:00:26]} h5 {[%emt 0:10:36]} 15. Nc2 {[%emt 0:06:16]} Nbd7 {[%emt 0:12:29]} 16. Bg5 {[%emt 0:16:50]} Ne5 {[%emt 0:15:45]} 17. Ne3 {[%emt 0:09:28]} Bg6 {[%emt 0:04:06]} 18. Ne4 {[%emt 0:03:58]} Nxe4 {[%emt 0:02:28]} 19. Bxd8 {[%emt 0:05:20]} Raxd8 {[%emt 0:00:02]} 20. a4 {[%emt 0:04:40]} 1/2-1/2